bitfinex-derivatives/quotes_SOLF0:USTF0_20250221
["timestamp","ask_amount","ask_price","bid_price","bid_amount"]
[1740154502372,1.05117666,174.88,174.82,0.04242653]
[1740154502571,5.7179,174.85,174.63,149.92]
[1740154502873,175.97264513,174.98,174.63,149.92]
[1740154503068,1.05089785,174.97,174.72,0.03774861]
[1740154503263,1.05089785,174.96,174.63,149.92]
[1740154503573,5.7182,174.84,174.83,0.03804544]
[1740154503766,4.0385,174.97,174.63,149.92]
[1740154503973,1.05115421,174.96,174.78,0.03896944]
[1740154504171,1.05115421,174.95,174.78,0.03896944]
[1740154504373,1.05115421,174.94,174.63,149.92]
[1740154504571,1.05115421,174.93,174.86,5.298e-05]
[1740154504776,1.05115421,174.92,174.63,149.92]
[1740154504974,1.05115421,174.91,174.63,149.92]
[1740154505271,1.05115421,174.9,174.63,149.92]
[1740154505472,21.2485,174.97,174.66,5.7238]
[1740154505473,1.41565421,174.89,174.66,5.7238]
[1740154505667,5.7205,174.77,174.75,0.04354183]
[1740154505875,0.03735348,174.78,174.75,0.04354183]
[1740154506167,0.04397324,174.78,174.75,0.03903501]
[1740154506768,5.76417324,174.78,174.75,0.03903501]
[1740154506970,0.04397324,174.78,174.75,0.03903501]
[1740154508170,1.09563254,174.78,174.75,0.03903501]
[1740154508374,1.0516593,174.77,174.75,0.03903501]
[1740154508569,0.04397324,174.78,174.75,0.03903501]
[1740154509373,5.7208,174.76,174.75,0.03903501]
[1740154509875,1.05172998,174.76,174.64,5.4054]
[1740154510077,1.05186702,174.75,174.64,5.4054]
[1740154510267,1.05186702,174.74,174.64,5.4054]
[1740154510471,17.21,174.86,174.64,5.4054]
[1740154510771,1.05187972,174.85,174.64,5.4054]
[1740154510971,1.05187972,174.84,174.64,5.4054]
[1740154511172,0.0415287,174.76,174.73,1.85e-05]
[1740154511579,1.05207485,174.81,174.6,5.7261]
[1740154511780,1.05207485,174.8,174.58,5.2527]
[1740154511978,5.7245,174.65,174.58,10.9793]
[1740154512175,5.7245,174.65,174.58,9.2748]
[1740154512380,0.04286676,174.63,174.6,0.04279869]
[1740154512675,1.05236764,174.78,174.6,0.04279869]
[1740154512977,1.05236764,174.77,174.5,5.2527]
[1740154513177,0.03746194,174.63,174.6,0.04396081]
[1740154513474,1.05254889,174.75,174.5,5.2527]
[1740154513681,17.21,174.72,174.51,1.14606612]
[1740154513982,0.04187339,174.63,174.6,2.264e-05]
[1740154514175,5.7257,174.61,174.6,2.264e-05]
[1740154514378,1.05254889,174.61,174.51,1.14606612]
[1740154514581,3.7036,174.6,174.51,1.14606612]
[1740154514780,1.05254889,174.59,174.51,1.14606612]
[1740154514984,0.04251951,174.57,174.54,0.03832754]
[1740154515274,0.04251951,174.57,174.43,3.6203]
[1740154515477,1.05254889,174.57,174.38,1.8324]
[1740154515681,1.05254889,174.56,174.44,1.14652602]
[1740154515877,1.05254889,174.55,174.44,1.14652602]
[1740154516179,1.41604889,174.54,174.44,1.14652602]
[1740154516382,0.04240933,174.51,174.48,7.153e-05]
[1740154516777,5.7297,174.49,174.48,7.153e-05]
[1740154516983,1.05254889,174.49,174.33,5.4777]
[1740154517277,10.88000851,174.56,174.34,1.14718366]
[1740154517483,10.77902208,174.56,174.34,27.14718366]
[1740154517678,5.7275,174.56,174.35,1.01992887]
[1740154517882,2.0641,174.64,174.36,149.9]
[1740154518084,152.24406344,174.6,174.36,149.9]
[1740154518381,0.03621495,174.47,174.44,0.04306232]
[1740154518883,1.05298708,174.59,174.36,149.9]
[1740154519082,0.04284645,174.47,174.44,0.03802887]
[1740154519277,0.04284645,174.47,174.34,1.14718366]
[1740154519473,1.05298708,174.49,174.34,1.14718366]
[1740154519679,1.7774,174.56,174.44,0.04031976]
[1740154519879,2.85054063,174.55,174.43,5.7316]
[1740154520080,0.04325059,174.52,174.48,0.03829506]
[1740154521081,0.04325059,174.52,174.34,1.14718366]
[1740154521483,1.05330278,174.53,174.34,1.14718366]
[1740154522385,0.04300907,174.45,174.42,0.04329372]
[1740154522679,1.7256,174.54,174.34,1.14718366]
[1740154522882,5.7302,174.48,174.38,5.7333]
[1740154523080,0.04349738,174.45,174.42,0.0439016]
[1740154523481,5.731,174.45,174.34,1.14718366]
[1740154523676,0.04096956,174.45,174.42,0.04263362]
[1740154523881,1.7256,174.54,174.34,1.14718366]
[1740154523882,1.05355092,174.53,174.34,1.14718366]
[1740154524079,0.04032348,174.45,174.42,0.0386234]
[1740154524485,1.05355092,174.53,174.48,5.7297]
[1740154524783,5.5238,174.66,174.37,150.0]
[1740154524981,5.7272,174.57,174.37,150.0]
[1740154525179,5.5238,174.66,174.37,150.0]
[1740154525381,1.05287603,174.65,174.37,150.0]
[1740154525682,0.03807466,174.53,174.5,0.03667301]
[1740154526192,5.7269,174.58,174.37,150.0]
[1740154526485,5.5238,174.66,174.37,150.0]
[1740154526686,5.7288,174.52,174.43,5.7316]
[1740154526887,1.14514743,174.65,174.44,1.7057]
[1740154527077,1.052971,174.64,174.45,1.873]
[1740154527385,0.03762442,174.56,174.53,0.03662801]
[1740154527785,0.03762442,174.56,174.53,5.76472801]
[1740154528088,1.14527858,174.63,174.53,0.03662801]
[1740154528385,5.3152,174.74,174.54,1.7057]
[1740154528588,1.05264436,174.73,174.54,1.7057]
[1740154528781,5.7223,174.72,174.61,5.7255]
[1740154528986,1.05264436,174.71,174.54,1.7057]
[1740154529188,1.05215143,174.74,174.54,1.7057]
[1740154529384,0.04386753,174.68,174.65,0.04247132]
[1740154529783,1.05220638,174.74,174.65,0.04247132]
[1740154529984,6.77427477,174.73,174.65,0.04247132]
[1740154530189,0.0437675,174.68,174.65,0.04247132]
[1740154530483,149.98,174.92,174.65,0.04247132]
[1740154530484,302.22406344,174.92,174.65,0.04247132]
[1740154530685,1.05186022,174.82,174.65,0.04247132]
[1740154530988,5.7217,174.74,174.61,5.7256]
[1740154531190,1.7719,174.9,174.62,1.798]
[1740154531387,1.05182284,174.82,174.62,1.798]
[1740154531588,5.7209,174.76,174.63,5.7249]
[1740154531793,0.03831761,174.74,174.71,0.04163937]
[1740154531985,5.7194,174.81,174.71,0.04163937]
[1740154532184,1.05182805,174.8,174.64,1.7548]
[1740154532584,5.7207,174.77,174.64,7.4793]
[1740154532784,3.4199,174.89,174.64,1.7548]
[1740154532991,1.0516789,174.88,174.64,1.7548]
[1740154533292,0.0379897,174.78,174.75,0.03838272]
[1740154533684,1.0516789,174.86,174.68,5.7233]
[1740154533990,0.0436654,174.78,174.75,0.04104573]
[1740154534591,1.0516789,174.88,174.64,1.7548]
[1740154534792,0.04110599,174.78,174.75,0.03715008]
[1740154535386,1.0516789,174.85,174.64,1.7548]
[1740154535591,5.75814575,174.78,174.75,0.04140084]
[1740154535793,0.03794575,174.78,174.75,0.04140084]
[1740154535993,1.05169071,174.88,174.65,1.7433]
[1740154536491,0.03928202,174.78,174.75,0.04214437]
[1740154536794,1.05169071,174.88,174.75,0.04214437]
[1740154536987,1.05169071,174.88,174.65,1.7433]
[1740154537188,5.7192,174.81,174.65,1.7433]
[1740154537386,4.56347596,174.89,174.65,151.6433]
[1740154537593,1.05147492,174.88,174.65,151.6433]
[1740154537791,1.05147492,174.88,174.69,5.7231]
[1740154537993,1.05147492,174.88,174.65,151.6433]
[1740154538190,1.05147492,174.88,174.75,0.04110843]
[1740154538191,0.04177568,174.78,174.75,0.04110843]
[1740154538587,5.7192,174.82,174.68,5.7233]
[1740154538786,2.84597596,174.89,174.65,151.6433]
[1740154538987,0.03715671,174.78,174.75,0.03943161]
[1740154539390,4.65277596,174.89,174.65,151.6433]
[1740154539594,1.05151707,174.88,174.65,151.6433]
[1740154539891,5.7205,174.77,174.75,0.039043]
[1740154540289,5.7199,174.79,174.65,151.6433]
[1740154540491,4.65277596,174.89,174.65,151.6433]
[1740154540791,0.043418,174.78,174.74,0.03811653]
[1740154540991,5.7205,174.77,174.74,0.03811653]
[1740154541186,4.65277596,174.89,174.65,1.7433]
[1740154541383,1.05165659,174.88,174.67,5.7237]
[1740154541588,0.04149126,174.77,174.74,0.04260122]
[1740154541989,1.05165659,174.85,174.65,1.7433]
[1740154542191,1.05165659,174.84,174.65,1.7433]
[1740154542493,5.7212,174.75,174.74,0.0384546]
[1740154542795,0.04372911,174.77,174.74,0.0384546]
[1740154542994,5.7198,174.8,174.65,1.7433]
[1740154543289,0.03664156,174.77,174.74,0.04291658]
[1740154544091,0.03664156,174.77,174.74,1.86781658]
[1740154544491,1.05145573,174.88,174.74,1.86781658]
[1740154544891,1.05145573,174.88,174.74,1.8249]
[1740154545800,1.05145573,174.88,174.79,0.04079042]
[1740154546693,5.7195,174.8,174.79,9.042e-05]
[1740154546996,6.77112911,174.8,174.79,9.042e-05]
[1740154550696,5.7195,174.8,174.79,9.042e-05]
[1740154552200,0.03794282,174.81,174.79,9.042e-05]
[1740154553199,1.7024,174.89,174.79,9.042e-05]
[1740154553891,1.05114309,174.88,174.79,9.042e-05]
[1740154554401,5.719,174.82,174.79,9.042e-05]
[1740154554902,5.7176,174.86,174.79,9.042e-05]
[1740154555098,3.611,174.91,174.79,9.042e-05]
[1740154555303,1.05118553,174.9,174.75,3.6381]
[1740154555605,5.7182,174.84,174.83,0.04265938]
[1740154558810,5.7182,174.84,174.83,5.938e-05]
[1740154559008,6.76952758,174.84,174.83,5.938e-05]
[1740154559707,6.76964799,174.84,174.83,5.938e-05]
[1740154560712,12.04404799,174.84,174.83,5.938e-05]
[1740154561507,12.04435116,174.84,174.83,5.938e-05]
[1740154562310,28.2026,174.84,174.83,5.938e-05]
[1740154562614,12.0444719,174.84,174.83,5.938e-05]
[1740154564613,13.18837489,174.84,174.83,5.938e-05]
[1740154565914,7.47017489,174.84,174.64,5.3327]
[1740154566115,1.0518719,174.83,174.64,5.3327]
[1740154566615,5.7202,174.78,174.64,5.3327]
[1740154567011,6.41830299,174.84,174.64,5.3327]
[1740154567210,0.04147879,174.73,174.69,0.04209821]
[1740154567516,1.05168578,174.83,174.65,5.7244]
[1740154567714,1.05168578,174.82,174.64,3.5829]
[1740154567912,0.04297114,174.73,174.69,0.03910027]
[1740154568312,6.41830299,174.84,174.65,1.8695]
[1740154568511,0.03676693,174.73,174.69,0.0390188]
[1740154568712,0.03676693,174.73,174.69,5.7621188]
[1740154568912,158.44344447,174.8,174.65,1.8695]
[1740154569114,0.0385372,174.73,174.69,0.03953323]
[1740154569620,0.0385372,174.73,174.69,0.043405]
[1740154569814,0.0385372,174.73,174.71,5.7224]
[1740154570109,158.44344447,174.8,174.69,0.043405]
[1740154570313,158.44344447,174.8,174.77,5.7204]
[1740154570614,158.44344447,174.84,174.65,1.8695]
[1740154571409,0.02132941,174.76,174.73,0.04199419]
[1740154571605,158.44344447,174.84,174.73,0.04199419]
[1740154571807,158.44344447,174.84,174.65,1.8695]
[1740154572917,158.44344447,174.91,174.73,0.04380333]
[1740154573118,1.0511179,174.9,174.73,0.04380333]
[1740154573318,1.0511179,174.9,174.65,1.8695]
[1740154573514,1.0511179,174.9,174.8,0.0375577]
[1740154573912,1.0511179,174.9,174.65,1.8695]
[1740154574218,1.0511179,174.9,174.79,5.7195]
[1740154574424,1.0511179,174.9,174.8,1.7552]
[1740154574626,1.0511179,174.9,174.76,0.0419293]
[1740154574820,10.57594351,174.9,174.73,1.7552]
[1740154575022,21.51516929,174.9,174.81,6.42e-06]
[1740154575230,5.7189,174.82,174.81,6.42e-06]
[1740154575425,0.03722944,174.83,174.81,6.42e-06]
[1740154575630,10.93922578,174.9,174.81,6.42e-06]
[1740154575830,1.05127655,174.89,174.81,6.42e-06]
[1740154576332,0.0388,174.87,174.83,0.04134614]
[1740154576538,1.09007655,174.87,174.83,0.04134614]
[1740154576827,5.7182,174.84,174.83,0.04134614]
[1740154577241,0.0388,174.87,174.83,0.04134614]
[1740154577835,5.7176,174.86,174.83,0.04134614]
[1740154578535,5.7179,174.85,174.83,0.04134614]
[1740154578734,0.0388,174.87,174.83,0.04134614]
[1740154580844,5.7182,174.84,174.83,0.04134614]
[1740154581540,5.7179,174.86,174.83,0.04134614]
[1740154581740,0.0388,174.87,174.83,0.04134614]
[1740154582240,5.7182,174.84,174.83,0.04134614]
[1740154582631,5.7182,174.84,174.83,4.614e-05]
[1740154582836,0.0388,174.87,174.83,4.614e-05]
[1740154585035,164.15834447,174.95,174.83,4.614e-05]
[1740154585238,1.05081919,174.94,174.76,1.8096]
[1740154585439,161.86334447,174.98,174.76,1.8096]
[1740154585641,1.05074533,174.97,174.76,1.8096]
[1740154586240,0.0364758,174.88,174.85,0.03889327]
[1740154586442,1.6977,174.96,174.76,1.8096]
[1740154586643,0.03859735,174.88,174.85,0.04066326]
[1740154586945,5.7149,174.95,174.76,1.8096]
[1740154587242,0.03849702,174.88,174.85,0.03633548]
[1740154587544,5.7154,174.93,174.85,0.03633548]
[1740154587743,0.03920829,174.88,174.85,0.03633548]
[1740154588043,5.7156,174.93,174.87,0.03754136]
[1740154588241,0.03927804,174.88,174.87,0.03754136]
[1740154588442,1.05078286,174.95,174.87,0.03754136]
[1740154588743,0.03768137,174.89,174.87,0.03754136]
[1740154589044,1.05078286,174.95,174.87,0.03754136]
[1740154589343,0.03900706,174.9,174.87,0.03754136]
[1740154590635,0.03900706,174.9,174.76,1.8096]
[1740154590839,5.7172,174.88,174.76,1.8096]
[1740154591041,1.6977,174.96,174.76,1.8096]
[1740154591238,1.0510329,174.95,174.76,1.8096]
[1740154591435,5.7168,174.89,174.76,1.8096]
[1740154591834,0.04084824,174.84,174.81,0.04170244]
[1740154592137,0.04084824,174.84,174.76,1.8096]
[1740154592138,1.05092748,174.95,174.76,1.8096]
[1740154592338,1.6977,174.96,174.76,1.8096]
[1740154592544,5.7157,174.92,174.76,1.8096]
[1740154592944,3.4199,174.98,174.77,149.72]
[1740154592945,1.7081,174.98,174.77,149.72]
[1740154593135,1.0506142,174.97,174.77,149.72]
[1740154593339,0.03799311,174.89,174.86,0.04381516]
[1740154593538,5.7147,174.95,174.87,5.7169]
[1740154593741,1.7081,174.98,174.86,0.04347917]
[1740154594044,5.7149,174.94,174.77,149.72]
[1740154594443,0.03799311,174.94,174.9,0.0369222]
[1740154594745,1.05082932,174.97,174.77,149.72]
[1740154594949,0.03643745,174.94,174.9,0.0431722]
[1740154595148,1.7081,174.98,174.85,5.7176]
[1740154595348,1.05070286,174.97,174.9,0.03804656]
[1740154595850,0.03799311,174.95,174.92,0.04042202]
[1740154596346,5.75164159,174.95,174.92,0.03699897]
[1740154596543,0.03694159,174.95,174.92,0.03699897]
[1740154596846,5.75184159,174.95,174.92,0.03699897]
[1740154597050,0.03694159,174.95,174.92,0.03699897]
[1740154599148,5.7152,174.94,174.92,0.03699897]
[1740154599651,0.03694159,174.95,174.92,0.03699897]
[1740154600344,5.75174159,174.95,174.92,0.03699897]
[1740154600550,0.03694159,174.95,174.92,0.03699897]
[1740154600753,5.713,175.0,174.92,0.03699897]
[1740154601151,1.7163,175.05,174.81,11.56]
[1740154601354,1.05023842,175.04,174.81,11.56]
[1740154601852,1.05023842,175.04,174.77,149.72]
[1740154601853,1.7163,175.05,174.91,0.03650971]
[1740154602046,1.05029444,175.04,174.91,0.03650971]
[1740154602251,1.05029431,175.03,174.81,11.52]
[1740154602547,1.05036436,175.02,174.81,11.52]
[1740154602755,1.7163,175.05,174.9,0.04189234]
[1740154602950,1.05033534,175.04,174.9,0.04189234]
[1740154603150,1.05033534,175.04,174.81,11.52]
[1740154603351,5.7142,174.97,174.95,0.04025792]
[1740154603654,158.44344447,175.06,174.94,0.04088038]
[1740154603952,5.7143,174.96,174.89,5.7163]
[1740154604353,1.7608,175.03,174.91,0.0436645]
[1740154604653,1.7608,175.03,174.81,11.52]
[1740154604844,1.7608,175.03,174.95,0.03701283]
[1740154605044,5.7142,174.97,174.81,11.52]
[1740154605355,1.7608,175.03,174.87,0.04166098]
[1740154605553,1.7608,175.03,174.81,11.52]
[1740154605751,1.7608,175.03,174.93,0.04188738]
[1740154606151,5.7149,174.94,174.93,0.04188738]
[1740154606353,1.7608,175.03,174.93,0.04188738]
[1740154606651,5.7145,174.96,174.93,0.04188738]
[1740154606852,1.7608,175.03,174.93,0.04188738]
[1740154607055,1.05034669,175.02,174.93,0.04188738]
[1740154607244,1.7608,175.03,174.93,0.04188738]
[1740154607846,1.05032265,175.02,174.93,0.04188738]
[1740154608350,5.7135,174.99,174.93,0.04188738]
[1740154608555,1.7608,175.03,174.93,0.04188738]
[1740154610054,1.05030579,175.02,174.93,0.04188738]
[1740154611061,5.7145,174.96,174.93,0.04188738]
[1740154611258,1.7608,175.03,174.93,0.04188738]
[1740154611454,158.44344447,175.09,174.94,11.34]
[1740154612060,158.44344447,175.09,175.0,5.756372]
[1740154612356,158.44344447,175.09,175.0,0.043472]
[1740154612551,158.44344447,175.09,175.01,3.6353]
[1740154612752,158.44344447,175.09,175.02,1.8763]
[1740154613159,158.44344447,175.09,175.01,3.6353]
[1740154613354,158.44344447,175.09,175.04,0.04148259]
[1740154613657,1.868,175.08,174.95,1.8207]
[1740154613963,158.44344447,175.09,174.95,1.8207]
[1740154614362,3.5291,175.16,174.95,1.8207]
[1740154614564,1.04978173,175.15,174.95,1.8207]
[1740154614863,0.03831201,175.07,175.04,0.03744813]
[1740154615064,3.5291,175.16,174.95,1.8207]
[1740154615258,1.04969317,175.15,174.95,1.8207]
[1740154615463,0.03675738,175.06,175.03,0.03701966]
[1740154615664,0.03675738,175.06,175.05,5.711]
[1740154615865,3.5291,175.16,174.95,1.8207]
[1740154616163,0.04161388,175.07,175.06,5.711]
[1740154616555,3.5291,175.16,174.95,151.4007]
[1740154616756,0.04253412,175.08,175.07,5.7104]
[1740154616964,9.2371,175.16,175.07,5.7104]
[1740154617265,9.2371,175.16,175.06,0.03828302]
[1740154617266,0.04095638,175.09,175.06,0.03828302]
[1740154617470,3.5291,175.16,175.06,5.7108]
[1740154617671,0.03732959,175.09,175.06,0.04306748]
[1740154617865,5.7092,175.12,175.06,0.04306748]
[1740154618063,0.03737717,175.09,175.06,0.04306748]
[1740154618366,1.0495721,175.15,175.06,0.04306748]
[1740154618567,0.03703158,175.09,175.06,0.04306748]
[1740154618957,0.03703158,175.09,175.07,5.7106]
[1740154619159,0.03703158,175.09,175.06,0.04306748]
[1740154620661,0.03703158,175.09,174.99,5.713]
[1740154620868,0.03703158,175.09,174.95,151.4007]
[1740154621059,5.7109,175.07,174.95,1.8207]
[1740154621270,1.8021,175.14,174.95,1.8207]
[1740154621468,1.04986862,175.13,174.95,1.8207]
[1740154621671,11.12,175.12,174.95,1.8207]
[1740154621970,0.04096186,175.06,175.02,0.04065355]
[1740154622172,0.04096186,175.06,174.87,5.2729]
[1740154622365,1.04986862,175.1,174.87,5.2729]
[1740154622565,1.04986862,175.11,174.87,5.2729]
[1740154622769,1.14220445,175.1,174.87,5.2729]
[1740154622968,1.05037122,175.09,174.87,5.2729]
[1740154623170,1.14220445,175.1,174.87,5.2729]
[1740154623171,1.05037122,175.08,174.87,5.2729]
[1740154623363,0.04385584,175.0,174.96,0.03860949]
[1740154623773,5.7114,175.05,174.99,5.7133]
[1740154624074,0.03984733,175.0,174.96,0.04130815]
[1740154624373,1.14220445,175.1,174.87,5.2729]
[1740154624563,0.04008674,175.0,174.96,0.04299031]
[1740154624766,1.7149,175.12,174.96,0.04299031]
[1740154624970,5.7114,175.05,174.88,11.26]
[1740154625271,1.7149,175.12,174.88,11.26]
[1740154625577,1.04992236,175.11,174.88,11.26]
[1740154625962,0.03891233,175.01,174.98,0.04262367]
[1740154626462,1.0500274,175.09,174.88,11.26]
[1740154626670,0.03665796,175.01,174.98,0.03855174]
[1740154626868,0.03665796,175.01,174.88,11.26]
[1740154627173,1.0500274,175.09,174.98,0.0362813]
[1740154627365,1.7398,175.08,174.87,5.2729]
[1740154627569,0.03697766,175.05,174.87,5.2729]
[1740154627770,1.05020755,175.07,174.87,5.2729]
[1740154628670,1.05020755,175.07,174.88,5.7169]
[1740154628871,0.04124112,174.99,174.95,0.03968565]
[1740154629272,1.05047779,175.07,174.88,5.7169]
[1740154629477,0.04014907,174.99,174.95,0.04023212]
[1740154629669,5.7146,174.95,174.88,5.7169]
[1740154629975,0.03832515,174.95,174.92,0.03768164]
[1740154630378,5.75302515,174.95,174.92,0.03768164]
[1740154630570,0.03832515,174.95,174.92,0.03768164]
[1740154630770,5.7153,174.93,174.92,0.03768164]
[1740154630972,0.03832515,174.95,174.92,0.03768164]
[1740154631878,5.75302515,174.95,174.92,0.03768164]
[1740154632081,0.03832515,174.95,174.92,0.03768164]
[1740154634775,0.03832515,174.95,174.92,0.03768164]
[1740154635568,1.05043009,175.06,174.92,0.03768164]
[1740154635772,1.05043009,175.06,174.87,1.7199]
[1740154636173,5.7139,174.98,174.92,5.7153]
[1740154636374,158.44344447,175.07,174.87,1.7199]
[1740154636678,0.03741884,174.99,174.95,0.03706666]
[1740154637081,1.05022829,175.08,174.87,1.7199]
[1740154637283,0.04048182,174.99,174.95,0.04219103]
[1740154637671,0.04331903,174.99,174.87,1.7199]
[1740154637880,0.04331903,174.99,174.95,0.04082384]
[1740154638072,1.05022829,175.08,174.87,1.7199]
[1740154638277,0.03741407,174.99,174.95,0.03955682]
[1740154638582,5.7133,174.99,174.87,1.7199]
[1740154638783,0.0377038,174.99,174.95,0.04373812]
[1740154639081,1.05019978,175.09,174.87,1.7199]
[1740154639384,0.03887133,174.99,174.95,0.04286704]
[1740154639581,5.7155,174.93,174.88,5.7168]
[1740154640085,5.7155,174.93,174.89,0.04076417]
[1740154640383,5.75611739,174.92,174.89,0.04076417]
[1740154640584,1.14226968,175.09,174.88,5.7168]
[1740154640783,1.05047644,175.08,174.85,1.8078]
[1740154640975,5.7163,174.9,174.89,0.03808584]
[1740154641179,2.19287662,175.07,174.71,149.6]
[1740154641180,10.88,175.0,174.71,149.6]
[1740154641375,0.04140366,174.91,174.88,8.83e-06]
[1740154641678,11.4282,174.97,174.72,63.03444536]
[1740154641878,1.05072008,174.96,174.74,3.5736]
[1740154642078,5.7196,174.8,174.74,3.5736]
[1740154642285,28.6382,174.97,174.74,3.5736]
[1740154642485,2.19433791,174.96,174.77,5.7205]
[1740154642685,0.04127066,174.87,174.84,9.222e-05]
[1740154642888,10.84,174.89,174.74,1.8524]
[1740154643180,6.34291949,174.88,174.73,31.29536496]
[1740154643387,1.05121949,174.87,174.66,5.4153]
[1740154643881,0.04245467,174.78,174.75,0.04062832]
[1740154644181,10.82,174.78,174.62,7.92247492]
[1740154644390,1.05121949,174.77,174.62,7.92247492]
[1740154644577,3.5608,174.85,174.63,5.3731]
[1740154644783,1.05172612,174.84,174.63,5.3731]
[1740154645192,0.03745602,174.75,174.72,0.04030058]
[1740154645578,1.05172612,174.84,174.63,5.3731]
[1740154645780,0.03627948,174.75,174.72,0.04152609]
[1740154645984,3.5608,174.85,174.72,0.04152609]
[1740154646180,3.5608,174.85,174.7,5.7225]
[1740154646379,3.5608,174.85,174.71,1.8585]
[1740154646585,1.05143347,174.84,174.71,1.8585]
[1740154646785,5.7201,174.79,174.71,1.8585]
[1740154646989,3.5608,174.85,174.71,1.8585]
[1740154647189,0.04196923,174.77,174.73,0.03860338]
[1740154647587,1.05165441,174.84,174.64,1.7718]
[1740154647888,5.7214,174.75,174.73,0.04203566]
[1740154648089,0.03684162,174.77,174.64,1.7718]
[1740154648386,5.7205,174.78,174.72,0.04335829]
[1740154648686,10.76,174.8,174.63,3.5146]
[1740154648892,0.04123124,174.77,174.65,5.7244]
[1740154649086,1.05177384,174.79,174.65,5.7244]
[1740154649395,1.7298,174.78,174.65,5.7244]
[1740154649592,1.05177384,174.77,174.65,5.7244]
[1740154649788,2.79727384,174.77,174.66,5.7241]
[1740154649990,1.7455,174.77,174.63,3.5146]
[1740154650189,0.04329209,174.73,174.7,0.04277648]
[1740154650594,4.51805237,174.84,174.7,0.04277648]
[1740154650790,1.05175237,174.83,174.7,0.04277648]
[1740154650998,5.7189,174.82,174.64,1.7903]
[1740154651187,3.4663,174.84,174.64,1.7903]
[1740154651898,0.04211808,174.76,174.72,0.04350456]
[1740154652295,1.0513917,174.83,174.64,1.7903]
[1740154652497,0.03905303,174.76,174.72,0.0417922]
[1740154652997,0.03905303,174.76,174.72,0.03811189]
[1740154655300,5.7214,174.75,174.72,0.03811189]
[1740154656098,5.7218,174.73,174.72,0.03811189]
[1740154659203,5.7236,174.68,174.63,3.5146]
[1740154659404,1.873,174.74,174.64,5.7245]
[1740154659608,1.873,174.74,174.63,3.5146]
[1740154659908,1.8399,174.75,174.63,3.5146]
[1740154660111,1.05198692,174.74,174.63,3.5146]
[1740154660309,5.7231,174.7,174.63,3.5146]
[1740154660609,0.04187429,174.7,174.67,0.03991647]
[1740154662499,5.7234,174.68,174.67,0.03991647]
[1740154662807,5.7234,174.68,174.67,1.647e-05]
[1740154663703,6.77567551,174.68,174.67,1.647e-05]
[1740154664605,6.7758276,174.68,174.67,1.647e-05]
[1740154668011,1.0524276,174.68,174.67,1.647e-05]
[1740154668211,0.04187429,174.7,174.67,1.647e-05]
[1740154668606,0.04187429,174.7,174.68,5.7234]
[1740154669201,0.04187429,174.7,174.67,1.647e-05]
[1740154669710,1.05186371,174.78,174.67,1.647e-05]
[1740154669905,1.05186371,174.77,174.69,5.723]
[1740154670113,3.5743,174.8,174.57,11.4537]
[1740154670410,1.05175846,174.79,174.57,11.4537]
[1740154670911,0.04360825,174.7,174.69,5.7229]
[1740154671110,1.05167093,174.79,174.66,0.04253773]
[1740154671411,5.7211,174.76,174.57,11.4537]
[1740154671609,5.7211,174.76,174.56,12.4841]
[1740154671909,1.8378,174.83,174.56,12.4841]
[1740154671910,3.5753,174.86,174.57,1.01857076]
[1740154672110,1.0513823,174.85,174.57,1.01857076]
[1740154672311,0.03646321,174.73,174.7,0.03908044]
[1740154672510,5.4257,174.86,174.73,5.7217]
[1740154672706,1.05139694,174.85,174.64,149.84]
[1740154673309,1.05139694,174.84,174.64,149.84]
[1740154673505,1.05139694,174.83,174.64,149.84]
[1740154673711,0.03804227,174.76,174.72,0.03936246]
[1740154673915,1.05139694,174.85,174.64,149.84]
[1740154674208,0.0410565,174.76,174.72,0.04052967]
[1740154674413,5.7189,174.82,174.75,5.7212]
[1740154674614,3.5753,174.86,174.75,5.7212]
[1740154674916,5.719,174.82,174.76,5.7208]
[1740154675106,3.5753,174.86,174.65,1.8694]
[1740154675308,1.05133307,174.84,174.65,1.8694]
[1740154675516,5.7188,174.83,174.77,5.7203]
[1740154675715,3.5753,174.86,174.75,1.8694]
[1740154676013,0.03979706,174.82,174.78,0.03705234]
[1740154678016,5.7198,174.79,174.78,0.03705234]
[1740154678411,0.03979706,174.82,174.78,0.03705234]
[1740154681420,5.7198,174.79,174.78,0.03705234]
[1740154681822,0.03979706,174.82,174.78,0.03705234]
[1740154682021,5.7193,174.81,174.78,0.03705234]
[1740154682321,0.03979706,174.82,174.78,0.03705234]
[1740154683523,5.7193,174.81,174.78,0.03705234]